bitfinex/quotes_ETHUSD_20250806
["timestamp","ask_amount","ask_price","bid_price","bid_amount"]
[1754479422096,3.147,3626.4,3626.2,0.9408]
[1754479422414,3.148,3626.5,3626.3,0.9408]
[1754479422613,3.148,3626.5,3626.4,0.9408]
[1754479423118,3.148,3626.5,3626.4,1.0784]
[1754479423676,0.001,3626.5,3626.4,4.0784]
[1754479425327,0.001,3626.5,3626.4,4.6284]
[1754479426112,0.001,3626.5,3626.4,0.6255]
[1754479426314,0.001,3626.5,3626.4,12.71742757]
[1754479426487,0.001,3626.5,3626.4,15.71742757]
[1754479428011,0.001,3626.5,3626.4,16.26742757]
[1754479428525,0.001,3626.5,3626.4,16.47790562]
[1754479428909,0.001,3626.5,3626.4,3.34807805]
[1754479429112,0.001,3626.5,3626.4,14.98710562]
[1754479429417,0.001,3626.5,3626.4,15.47500562]
[1754479430311,0.001,3626.5,3626.4,15.92790562]
[1754479430498,0.001,3626.5,3626.4,16.47790562]
[1754479433587,0.001,3626.5,3626.4,3.34807805]
[1754479434993,0.001,3626.5,3626.4,3.1376]
[1754479436711,0.001,3626.5,3626.4,4.0784]
[1754479436888,0.001,3626.5,3626.4,3.82917242]
[1754479437098,0.001,3626.5,3626.4,3.34127242]
[1754479440223,0.9343,3626.5,3626.4,3.1376]
[1754479440805,0.9343,3626.5,3626.4,0.1376]
[1754479442800,0.9343,3626.5,3626.1,0.042]
[1754479443128,1.0709,3626.4,3626.1,0.042]
[1754479443503,0.1376,3626.4,3626.1,0.042]
[1754479443820,0.9333,3626.3,3626.1,0.042]
[1754479444024,0.1376,3626.4,3626.1,0.042]
[1754479444226,0.001,3626.5,3626.2,0.1376]
[1754479444427,0.001,3626.5,3626.2,0.6255]
[1754479444803,0.001,3626.5,3626.2,0.1376]
[1754479445131,0.001,3626.5,3626.4,11.77662757]
[1754479445624,0.001,3626.5,3626.4,12.26192757]
[1754479448806,0.001,3626.5,3626.4,12.71462757]
[1754479449011,0.001,3626.5,3626.4,15.71462757]
[1754479453571,0.001,3626.5,3626.4,15.26192757]
[1754479453731,0.001,3626.5,3626.4,19.50092757]
[1754479454739,0.001,3626.5,3626.4,20.50362757]
[1754479455854,0.001,3626.5,3626.4,20.05092757]
[1754479461990,0.001,3626.5,3626.4,20.50362757]
[1754479462286,0.001,3626.5,3626.4,20.05092757]
[1754479463780,0.001,3626.5,3626.4,20.05292757]
[1754479464407,0.001,3626.5,3626.4,19.56762757]
[1754479464592,0.001,3626.5,3626.4,20.50562757]
[1754479466166,0.001,3626.5,3626.4,20.64078828]
[1754479466372,0.001,3626.5,3626.4,20.50562757]
[1754479468709,0.001,3626.5,3626.4,20.6467052]
[1754479469251,0.001,3626.5,3626.4,20.50562757]
[1754479474644,0.001,3626.5,3626.4,20.05292757]
[1754479482019,0.001,3626.5,3626.4,20.49982757]
[1754479482641,0.001,3626.5,3626.4,16.26082757]
[1754479482851,0.001,3626.9,3626.5,3.55]
[1754479483033,0.001,3626.9,3626.8,15.18902757]
[1754479483250,0.001,3626.9,3626.8,19.37702757]
[1754479483637,0.001,3626.9,3626.8,19.84442757]
[1754479483941,0.001,3626.9,3626.8,19.98202757]
[1754479484244,0.001,3626.9,3626.8,19.51462757]
[1754479484422,0.9542,3626.9,3626.8,19.51462757]
[1754479485031,0.001,3626.9,3626.8,19.51462757]
[1754479487161,0.9542,3626.9,3626.8,15.32662757]
[1754479487325,0.9542,3626.9,3626.8,19.51462757]
[1754479490712,0.4872,3626.9,3626.8,19.51462757]
[1754479491935,0.001,3626.9,3626.8,19.51462757]
[1754479492136,0.001,3626.9,3626.8,19.98202757]
[1754479492336,0.001,3626.9,3626.8,19.51462757]
[1754479494071,0.4872,3626.9,3626.8,19.51462757]
[1754479494996,0.001,3626.9,3626.8,19.51462757]
[1754479496094,0.001,3626.9,3626.8,19.98202757]
[1754479497678,0.001,3627.3,3627.2,15.18902757]
[1754479497862,0.001,3627.3,3627.2,19.37602757]
[1754479498062,0.001,3627.3,3627.2,19.98102757]
[1754479498268,0.001,3627.3,3627.2,19.51362757]
[1754479500288,0.9542,3627.3,3627.2,19.51362757]
[1754479502211,0.4872,3627.3,3627.2,19.51362757]
[1754479502512,0.9542,3627.3,3627.2,19.51362757]
[1754479503971,0.9542,3627.3,3627.2,19.56562757]
[1754479504176,0.9542,3627.3,3627.2,23.75262757]
[1754479506112,0.001,3627.3,3627.2,23.75262757]
[1754479506718,0.4848,3627.3,3627.2,23.75262757]
[1754479509429,0.9495,3627.3,3627.2,23.75262757]
[1754479510984,0.9495,3627.3,3627.2,7.3766]
[1754479511185,0.9495,3627.3,3627.2,11.5636]
[1754479513023,0.9495,3627.3,3627.2,12.1136]
[1754479515606,0.9495,3627.3,3627.2,12.941873]
[1754479516840,0.001,3627.3,3627.2,12.941873]
[1754479517591,0.4848,3627.3,3627.2,12.941873]
[1754479518902,0.001,3627.3,3627.2,12.941873]
[1754479519130,0.001,3627.3,3627.2,13.417773]
[1754479520824,0.001,3627.3,3627.2,12.941873]
[1754479523427,0.001,3627.3,3627.2,8.754873]
[1754479523633,0.001,3627.3,3627.2,12.941873]
[1754479524434,0.4848,3627.3,3627.2,12.941873]
[1754479524793,0.001,3627.3,3627.2,12.941873]
[1754479525933,0.001,3627.3,3627.2,13.417773]
[1754479526897,0.001,3627.3,3627.2,13.881973]
[1754479529517,0.001,3627.3,3627.2,13.417773]
[1754479530939,0.001,3627.6,3627.3,0.55]
[1754479531150,0.001,3627.6,3627.5,15.32662757]
[1754479531507,0.001,3627.6,3627.5,16.26672757]
[1754479531709,0.001,3627.6,3627.5,16.37713857]
[1754479536387,0.001,3627.6,3627.5,15.91293857]
[1754479536536,0.001,3627.6,3627.5,16.36333857]
[1754479536736,0.001,3627.7,3627.6,3.55]
[1754479537067,0.001,3627.7,3627.6,8.2109]
[1754479537950,0.001,3627.7,3627.6,8.321299]
[1754479539272,0.001,3627.7,3627.6,8.771699]
[1754479539454,0.001,3627.9,3627.6,8.771699]
[1754479539665,0.001,3627.9,3627.8,0.55]
[1754479539875,0.001,3627.9,3627.8,7.8736]
[1754479540049,0.001,3627.9,3627.8,8.3485]
[1754479540455,0.4912,3627.9,3627.8,3.6876]
[1754479540686,0.9327,3627.9,3627.8,7.983995]
[1754479541681,0.9327,3627.9,3627.8,3.247995]
[1754479541869,0.9327,3627.9,3627.8,7.433995]
[1754479542182,0.9327,3627.9,3627.8,7.983995]
[1754479542758,0.9327,3627.9,3627.8,8.19476402]
[1754479545805,0.9327,3627.9,3627.8,4.00876402]
[1754479545990,0.9327,3627.9,3627.8,8.19376402]
[1754479546890,0.9327,3627.9,3627.8,3.45876402]
[1754479547092,0.9327,3627.9,3627.8,7.64476402]
[1754479553304,0.001,3627.9,3627.8,8.19476402]
[1754479554215,0.9327,3627.9,3627.8,8.19476402]
[1754479557022,0.9327,3627.9,3627.8,3.45876402]
[1754479558239,0.9327,3627.9,3627.8,0.1376]
[1754479558398,0.9327,3627.9,3627.7,0.1376]
[1754479558730,0.9317,3627.8,3627.7,0.1376]
[1754479566048,0.001,3627.9,3627.7,0.1376]
[1754479566208,0.928,3627.8,3627.7,0.1376]
[1754479567639,0.928,3627.8,3627.5,0.1376]
[1754479567939,0.928,3627.7,3627.5,0.1376]
[1754479568139,0.928,3627.6,3627.5,0.1376]
[1754479576829,0.001,3627.9,3627.5,0.1376]
[1754479577259,0.4973,3627.8,3627.5,0.1376]
[1754479577880,0.928,3627.8,3627.5,0.1376]
[1754479578474,0.4973,3627.7,3627.5,0.1376]
[1754479578862,0.001,3627.9,3627.5,0.605]
[1754479579063,0.4983,3627.9,3627.8,0.1376]
[1754479579273,0.929,3627.9,3627.8,0.1376]
[1754479580579,0.929,3627.9,3627.3,4.239]
[1754479580785,0.928,3627.8,3627.5,0.1376]
[1754479581206,0.928,3627.7,3627.5,0.1376]
[1754479581407,0.4307,3627.7,3627.5,0.1376]
[1754479581589,0.4973,3627.6,3627.5,0.1376]
[1754479584018,0.928,3627.6,3627.5,0.1376]
[1754479585110,0.4973,3627.6,3627.5,0.1376]
[1754479585982,0.4307,3627.8,3627.5,0.1376]
[1754479586183,0.4973,3627.7,3627.5,0.1376]
[1754479586599,0.928,3627.7,3627.5,0.1376]
[1754479586784,0.4973,3627.6,3627.5,0.1376]
[1754479588298,0.001,3627.9,3627.5,0.605]
[1754479588524,0.001,3627.9,3627.5,0.1376]
[1754479588684,0.001,3627.9,3627.7,0.1376]
[1754479589101,0.4983,3627.9,3627.7,0.1376]
[1754479589292,0.929,3627.9,3627.7,0.1376]
[1754479589678,0.928,3627.8,3627.7,0.1376]
[1754479593392,0.929,3627.8,3627.7,0.1376]
[1754479594330,0.929,3627.8,3627.5,0.1396]
[1754479594532,0.928,3627.7,3627.5,0.1396]
[1754479594903,0.913,3627.6,3627.5,0.1396]
[1754479595434,0.4566,3627.6,3627.5,0.1396]
[1754479595816,0.913,3627.6,3627.5,0.1396]
[1754479597994,0.4576,3627.8,3627.5,0.1396]
[1754479598207,0.4566,3627.7,3627.5,0.1396]
[1754479598694,0.913,3627.7,3627.5,0.1396]
[1754479598941,0.001,3627.8,3627.5,0.1396]
[1754479599307,0.914,3627.8,3627.5,0.1396]
[1754479599521,0.913,3627.7,3627.5,0.1396]
[1754479600021,0.001,3627.8,3627.5,0.1396]
[1754479600331,0.913,3627.6,3627.5,0.1396]
[1754479601200,0.4566,3627.6,3627.5,0.1396]
[1754479601597,0.001,3627.8,3627.5,0.1396]
[1754479602109,0.4566,3627.7,3627.5,0.1396]
[1754479602429,0.913,3627.7,3627.5,0.1396]
[1754479602737,0.4566,3627.6,3627.5,0.1396]
[1754479602934,0.913,3627.6,3627.5,0.002]
[1754479603303,5.098,3627.6,3627.5,0.002]
[1754479603642,5.90759718,3627.6,3627.5,0.002]
[1754479603936,5.8800167,3627.6,3627.5,0.002]
[1754479605952,1.6950167,3627.6,3627.5,0.002]
[1754479606098,5.38387125,3627.6,3627.5,0.002]
[1754479608643,5.3562567,3627.6,3627.5,0.002]
[1754479611470,1.1712567,3627.6,3627.5,0.002]
[1754479611775,5.3562567,3627.6,3627.5,0.002]
[1754479613459,5.4938567,3627.6,3627.5,0.002]
[1754479613970,5.49326386,3627.6,3627.5,0.002]
[1754479614168,1.30826386,3627.6,3627.5,0.002]
[1754479614371,0.39526386,3627.6,3627.5,0.002]
[1754479614574,4.3226,3627.6,3627.5,0.002]
[1754479614786,4.58026386,3627.6,3627.5,0.002]
[1754479614956,5.12979025,3627.6,3627.5,0.002]
[1754479615581,5.58639025,3627.6,3627.5,0.002]
[1754479615986,0.94479025,3627.6,3627.5,0.002]
[1754479616283,4.3226,3627.6,3627.5,0.002]
[1754479616460,4.58026386,3627.6,3627.5,0.002]
[1754479616657,0.001,3627.8,3627.5,0.002]
[1754479616849,4.44265626,3627.7,3627.5,0.002]
[1754479617049,4.185,3627.7,3627.5,0.002]
[1754479617483,0.001,3627.8,3627.5,0.002]
[1754479617687,4.185,3627.6,3627.5,0.002]
[1754479619679,0.914,3627.8,3627.5,0.002]
[1754479619892,4.185,3627.6,3627.5,0.002]
[1754479620594,0.001,3627.8,3627.5,0.002]
[1754479620779,4.185,3627.6,3627.5,0.4539]
[1754479621155,0.001,3627.8,3627.5,12.53882757]
[1754479621356,4.185,3627.7,3627.5,12.53882757]
[1754479621678,4.185,3627.7,3627.6,0.8978]
[1754479622089,0.001,3627.8,3627.6,1.4478]
[1754479622257,0.001,3627.8,3627.7,0.4519]
[1754479622463,0.001,3627.8,3627.7,0.8978]
[1754479624266,0.25873413,3627.8,3627.7,0.8978]
[1754479626660,0.001,3627.8,3627.7,0.8978]
[1754479628363,0.25882043,3627.8,3627.7,0.8978]
[1754479628593,0.001,3627.8,3627.7,8.7021]
[1754479631367,0.001,3627.8,3627.7,8.8407]
[1754479635007,0.001,3627.8,3627.7,7.9276]
[1754479635175,0.001,3627.8,3627.7,12.1106]
[1754479636108,0.001,3627.8,3627.7,11.972]
[1754479636270,0.001,3627.8,3627.7,12.4641]
[1754479636771,0.001,3627.8,3627.7,11.972]
[1754479639575,0.001,3627.8,3627.7,12.9253]
[1754479640511,0.001,3627.8,3627.7,12.4641]
[1754479642498,0.001,3627.8,3627.7,12.9253]
[1754479643019,0.001,3627.8,3627.7,13.13264222]
[1754479643223,0.001,3627.8,3627.7,12.67144222]
[1754479644297,0.001,3627.8,3627.7,13.13264222]
[1754479644989,0.001,3627.8,3627.7,12.67144222]
[1754479645406,0.001,3627.8,3627.7,12.17934222]
[1754479647297,0.001,3627.8,3627.7,12.67144222]
[1754479647913,0.001,3627.8,3627.7,12.17934222]
[1754479651111,0.001,3627.8,3627.7,12.67144222]
[1754479652690,0.001,3627.8,3627.7,13.13264222]
[1754479652885,0.001,3627.8,3627.7,12.67144222]
[1754479653091,0.001,3627.8,3627.7,13.13264222]
[1754479653287,0.001,3628.0,3627.8,3.55]
[1754479653625,0.001,3628.0,3627.9,19.37102757]
[1754479653789,0.001,3628.0,3627.9,20.46192757]
[1754479653996,0.001,3628.0,3627.9,20.57231857]
[1754479655203,0.001,3628.2,3628.0,3.55]
[1754479655520,0.001,3628.2,3628.1,7.732]
[1754479655921,0.001,3628.2,3628.1,8.7963]
[1754479656522,0.001,3628.2,3628.1,8.906689]
[1754479660333,0.25910524,3628.2,3628.1,8.906689]
[1754479661045,0.25910524,3628.2,3628.1,8.458889]
[1754479661335,0.001,3628.2,3628.1,8.458889]
[1754479662237,0.001,3628.2,3628.1,8.906689]
[1754479662607,0.001,3628.2,3628.1,8.458889]
[1754479663240,0.001,3628.2,3628.1,7.979989]
[1754479670843,0.001,3628.2,3628.1,8.906689]
[1754479671144,0.001,3628.2,3628.1,8.458889]
[1754479672766,0.001,3628.2,3628.1,7.979989]
[1754479672934,0.001,3628.2,3628.1,8.458889]
[1754479673256,0.001,3628.2,3628.1,7.979989]
[1754479681366,0.001,3628.2,3628.1,19.308989]
[1754479687377,0.001,3628.2,3628.1,12.679289]
[1754479688681,0.001,3628.2,3628.1,31.9812859]
[1754479692850,0.001,3628.2,3628.1,27.7422859]
[1754479694550,0.9004,3628.2,3628.1,17.19774845]
[1754479694971,0.9004,3628.2,3628.1,17.74774845]
[1754479696059,0.9004,3628.2,3628.1,18.57573545]
[1754479707924,0.9004,3628.2,3628.1,22.81473545]
[1754479710008,0.001,3628.2,3628.1,22.81473545]
[1754479711415,0.001,3628.2,3628.1,23.27503545]
[1754479711609,0.001,3628.2,3628.1,22.81473545]
[1754479711971,0.5121,3628.9,3628.2,3.55]
[1754479712177,0.041,3628.9,3628.6,0.55]
[1754479712414,0.041,3628.9,3628.6,7.8656]
[1754479712620,0.041,3628.9,3628.6,12.214976]
[1754479712789,0.041,3628.9,3628.6,24.29994069]
[1754479712990,0.041,3628.9,3628.6,20.06094069]
[1754479714501,0.041,3628.9,3628.6,19.60064069]
[1754479720143,0.041,3628.9,3628.6,20.07234069]
[1754479720436,0.041,3628.9,3628.6,19.60064069]
[1754479720640,0.496,3628.7,3628.6,19.60064069]
[1754479720830,0.001,3628.7,3628.6,19.60064069]
[1754479723027,0.041,3628.9,3628.7,3.55]
[1754479723422,0.041,3628.9,3628.7,4.0217]
[1754479723621,0.041,3628.9,3628.7,4.132071]
[1754479724141,0.001,3629.0,3628.8,0.55]
[1754479724440,0.001,3629.0,3628.9,7.726]
[1754479724644,0.001,3629.0,3628.9,7.8636]
[1754479724830,0.001,3629.0,3628.9,8.3586]
[1754479725433,0.001,3629.0,3628.9,8.8303]
[1754479726013,0.001,3629.0,3628.9,8.3586]
[1754479727846,0.001,3629.0,3628.9,8.8303]
[1754479729416,0.001,3629.0,3628.9,8.3586]
[1754479731650,0.496,3629.0,3628.9,8.3586]
[1754479731855,0.001,3629.0,3628.9,8.3586]
[1754479732056,0.496,3629.0,3628.9,8.3586]
[1754479732435,0.9604,3629.0,3628.9,8.3586]
[1754479734370,0.001,3629.0,3628.9,8.3586]
[1754479734663,0.9604,3629.0,3628.9,14.06027319]
[1754479734956,0.9604,3629.0,3628.9,18.23527319]
[1754479736026,0.001,3629.0,3628.9,18.23527319]
[1754479736855,0.001,3629.0,3628.9,18.70697319]
[1754479737560,0.001,3629.0,3628.9,22.94597319]
[1754479738534,0.001,3629.0,3628.9,22.47427319]
[1754479739489,0.496,3629.0,3628.9,22.47427319]
[1754479740377,0.9604,3629.0,3628.9,22.47427319]
[1754479740524,0.9604,3629.0,3628.9,18.29927319]
[1754479740729,0.9604,3629.0,3628.9,17.74927319]
[1754479740970,0.9604,3629.0,3628.9,21.92427319]
[1754479741190,0.9604,3629.0,3628.9,22.47427319]
[1754479742630,0.9604,3629.0,3628.9,24.22364783]
[1754479745284,0.496,3629.0,3628.9,24.22364783]
[1754479745446,0.001,3629.0,3628.9,24.22364783]
[1754479745842,0.4926,3629.0,3628.9,24.22364783]
[1754479746308,0.9284,3629.0,3628.9,24.22364783]
[1754479746910,0.001,3629.0,3628.9,24.22364783]
[1754479747088,0.001,3629.0,3628.9,19.98464783]
[1754479752834,0.9284,3629.0,3628.9,3.6326]
[1754479753034,0.9284,3629.0,3628.9,19.43364783]
[1754479753334,0.9284,3629.0,3628.9,19.98364783]
[1754479760205,0.9284,3629.0,3628.9,19.48864783]
[1754479764362,0.9284,3629.0,3628.9,23.72764783]
[1754479765161,0.001,3629.0,3628.9,23.72764783]
[1754479765363,0.001,3629.0,3628.9,24.22374783]
[1754479765568,0.001,3629.0,3628.9,24.33411783]
[1754479765729,0.001,3629.0,3628.9,24.76751783]
[1754479766156,0.001,3629.0,3628.9,24.33411783]
[1754479766354,0.001,3629.0,3628.9,24.33611783]
[1754479766864,0.001,3629.0,3628.9,24.76951783]
[1754479768870,0.001,3629.0,3628.9,23.84001783]
[1754479769078,0.001,3629.0,3628.9,24.76951783]
[1754479769566,0.001,3629.0,3628.9,24.33611783]
[1754479771544,0.001,3629.0,3628.9,23.84001783]
[1754479772185,0.001,3629.0,3628.9,24.33611783]
[1754479773788,0.001,3629.0,3628.9,24.76951783]
[1754479776877,0.001,3629.0,3628.9,24.77761783]
[1754479777896,0.001,3629.0,3628.9,24.33611783]
[1754479778195,0.001,3629.5,3629.3,0.55]
[1754479778397,0.001,3629.5,3629.4,16.48764783]
[1754479778568,0.4628,3629.5,3629.4,16.48764783]
[1754479778763,0.4628,3629.5,3629.4,23.72664783]
[1754479778971,0.8906,3629.5,3629.4,24.15444783]
[1754479779999,0.001,3629.5,3629.4,24.15444783]
[1754479780231,0.001,3629.5,3629.4,24.64224783]
[1754479781094,0.001,3629.5,3629.4,24.15444783]
[1754479781822,0.001,3629.5,3629.4,24.64224783]
[1754479784426,0.001,3629.5,3629.4,24.15444783]
[1754479784733,0.001,3629.5,3629.4,24.64224783]
[1754479784908,0.001,3629.5,3629.4,24.15444783]
[1754479789933,0.001,3629.5,3629.4,19.91544783]
[1754479792530,0.001,3629.5,3629.4,20.40324783]
[1754479793503,0.001,3629.5,3629.4,19.91544783]
[1754479795840,0.001,3629.5,3629.4,20.40324783]
[1754479796620,0.001,3629.5,3629.4,28.52219644]
[1754479797022,0.4628,3629.8,3629.5,3.55]
[1754479797326,0.4628,3629.8,3629.7,10.42299822]
[1754479797530,0.8906,3629.8,3629.7,10.42299822]
[1754479797735,0.8906,3629.8,3629.7,10.56059822]
[1754479798121,0.4628,3629.8,3629.7,11.38819922]
[1754479798544,0.4628,3629.8,3629.7,11.59294715]
[1754479798873,0.8906,3629.8,3629.7,11.59294715]
[1754479800154,0.001,3629.8,3629.7,11.59294715]
[1754479800457,0.4628,3629.8,3629.7,11.59294715]
[1754479800826,0.001,3629.8,3629.7,11.59294715]
[1754479801023,0.5,3630.0,3629.8,3.55]
[1754479801245,0.1376,3631.2,3630.0,0.55]
[1754479801451,0.1376,3631.2,3630.0,10.42299822]
[1754479801645,0.4628,3630.1,3630.0,10.42299822]
[1754479801850,0.8906,3630.1,3630.0,10.42299822]
[1754479802765,0.8906,3630.1,3630.0,12.16821043]
[1754479803226,0.001,3630.1,3630.0,15.16821043]
[1754479803430,0.4278,3630.8,3630.2,0.55]
[1754479803665,0.4628,3630.6,3630.5,12.16821043]
[1754479803979,0.4288,3630.6,3630.5,16.47681043]
[1754479804528,0.001,3630.6,3630.5,19.47681043]
[1754479805575,0.041,3630.9,3630.6,3.55]
[1754479805744,0.4585,3631.4,3630.8,3.55]
[1754479805951,0.4312,3631.5,3631.4,3.55]
[1754479806145,0.8897,3631.5,3631.4,7.72]
[1754479806872,0.4712,3631.9,3631.4,7.8576]
[1754479807032,0.8897,3631.5,3631.4,7.8576]
[1754479807232,0.04,3631.9,3631.8,0.1376]
[1754479807468,0.04,3631.9,3631.8,18.78821043]
[1754479807849,0.04,3631.9,3631.8,19.7975267]
[1754479808061,0.04,3631.9,3631.8,19.47581043]
[1754479808643,0.001,3632.3,3631.9,3.55]
[1754479808858,0.4712,3632.9,3632.3,3.55]
[1754479809057,0.04,3632.9,3632.8,15.30581043]
[1754479809290,0.04,3632.9,3632.8,19.47581043]
[1754479810785,0.4985,3632.9,3632.8,19.47581043]
[1754479811070,0.04,3632.9,3632.8,19.47581043]
[1754479813080,0.9297,3632.9,3632.8,19.47581043]
[1754479813286,0.9297,3632.9,3632.8,7.3056]
[1754479813702,0.9297,3632.9,3632.8,7.7641]
[1754479813840,0.04,3632.9,3632.8,8.3141]
[1754479814039,0.4585,3633.3,3632.9,3.55]
[1754479814244,0.04,3633.9,3633.3,3.55]
[1754479814443,0.04,3633.9,3633.8,0.55]
[1754479814664,0.04,3633.9,3633.8,4.8566]
[1754479814896,0.04,3633.9,3633.8,7.719]
[1754479815100,0.9297,3633.9,3633.8,7.719]
[1754479815372,0.04,3633.9,3633.8,19.33721043]
[1754479815576,0.04,3633.9,3633.8,19.54692955]
[1754479815783,0.4585,3634.5,3633.9,3.55]
[1754479815985,0.4585,3634.5,3634.4,15.16821043]
[1754479816281,0.8897,3634.5,3634.4,19.34621043]
[1754479816476,0.8897,3634.5,3634.4,3.0]
[1754479817846,0.8897,3634.5,3634.4,7.178]
[1754479818076,0.8897,3634.5,3634.4,7.728]
[1754479818252,0.04,3634.9,3634.5,3.0]
[1754479818457,0.4312,3634.7,3634.6,4.178]
[1754479818658,0.8897,3634.7,3634.6,4.178]
[1754479819861,0.8897,3634.7,3634.5,0.826602]
[1754479820062,0.8897,3634.6,3634.5,8.002602]
[1754479820748,0.8897,3634.6,3634.5,7.176]
[1754479821349,0.8897,3634.6,3634.5,3.0]
[1754479821551,0.8897,3634.6,3634.5,7.178]
[1754479822279,0.8897,3634.6,3634.5,3.0]
[1754479822486,0.8897,3634.6,3633.8,4.177]
[1754479822656,0.02761455,3634.5,3633.8,4.177]
[1754479822852,0.8897,3634.4,3633.8,4.177]
[1754479823047,0.8897,3634.3,3633.7,0.826789]
[1754479823274,0.8897,3634.2,3633.6,3.0]
[1754479823452,0.8897,3634.1,3633.1,11.61821043]
[1754479823652,0.06761455,3634.9,3633.5,0.826853]
[1754479823853,0.8897,3634.8,3633.6,4.179]
[1754479824073,3.0,3634.5,3633.4,0.826853]
[1754479824272,2.47086705,3634.4,3633.4,0.826853]
[1754479824474,2.47086705,3634.4,3632.6,6.77749295]
[1754479824653,0.8897,3634.3,3632.6,6.77749295]
[1754479824854,0.91731455,3634.2,3632.6,6.77749295]
[1754479825054,0.1376,3633.5,3633.0,0.1376]
[1754479825282,0.91731455,3633.4,3633.0,0.1376]
[1754479825489,0.91731455,3633.4,3632.6,6.77749295]
[1754479825490,0.8897,3633.3,3632.6,6.77749295]
[1754479825787,1.0273,3633.2,3632.7,0.1376]
[1754479825950,0.1376,3633.2,3632.7,0.1376]
[1754479826150,0.8897,3633.1,3632.7,0.1376]
[1754479826353,0.8897,3633.0,3632.7,0.1376]
[1754479826554,0.8897,3633.0,3632.4,11.61821043]
[1754479826863,0.4312,3633.4,3632.9,3.1376]
[1754479827077,0.8897,3633.6,3633.1,3.0]
[1754479827262,1.1193167,3634.2,3633.1,3.0]
[1754479827263,0.8897,3633.5,3633.3,0.1376]
[1754479827492,0.8897,3633.5,3633.1,3.0]
[1754479827493,0.4312,3633.5,3633.1,3.0]
[1754479827688,0.8897,3633.4,3633.1,3.0]
[1754479827986,1.1193167,3634.2,3633.8,0.1376]
[1754479828160,0.78965313,3634.1,3633.3,4.3186]
[1754479828493,0.78965313,3634.1,3633.8,0.1376]
[1754479828688,0.8897,3634.0,3633.8,0.1376]
[1754479828930,0.1376,3634.5,3633.6,11.61821043]
[1754479829059,0.4585,3634.4,3634.2,0.1376]
[1754479829254,0.4312,3634.3,3634.2,0.1376]
[1754479829682,0.8897,3634.3,3634.2,0.1376]
[1754479830881,0.8897,3634.3,3633.9,0.002]
[1754479831104,0.91731455,3634.2,3633.9,0.002]
[1754479831278,0.1376,3634.0,3633.9,0.002]
[1754479831570,0.16521455,3634.0,3633.9,0.002]
[1754479831771,1.05491455,3634.0,3633.9,0.002]
[1754479832474,44.12191455,3634.0,3633.9,0.002]
[1754479832699,51.00696186,3634.0,3633.9,0.002]
[1754479833704,48.10196186,3634.0,3633.9,0.002]
[1754479834488,51.00696186,3634.0,3633.9,0.002]
[1754479834727,48.24156186,3634.0,3633.9,0.002]
[1754479836543,47.55396186,3634.0,3633.9,0.002]
[1754479836890,13.36796186,3634.0,3633.9,0.002]
[1754479837094,14.8273,3634.0,3633.9,0.002]
[1754479838136,10.6393,3634.0,3633.9,0.002]
[1754479838423,14.8273,3634.0,3633.9,0.002]
[1754479838624,10.6393,3634.0,3633.9,0.002]
[1754479838826,14.8273,3634.0,3633.9,0.002]
[1754479839001,16.31003,3634.0,3633.9,0.002]
[1754479842630,12.12203,3634.0,3633.9,0.002]
[1754479842833,15.87783,3634.0,3633.9,0.002]
[1754479843037,15.41933,3634.0,3633.9,0.002]
[1754479843195,15.88753,3634.0,3633.9,0.002]
[1754479843532,16.34793,3634.0,3633.9,0.002]
[1754479846022,15.41933,3634.0,3633.9,0.002]
[1754479846229,16.34793,3634.0,3633.9,0.002]
[1754479847295,15.41933,3634.0,3633.9,0.002]
[1754479847635,11.23233,3634.0,3633.9,0.002]
[1754479848008,15.41933,3634.0,3633.9,0.002]
[1754479848212,16.34793,3634.0,3633.9,0.002]
[1754479856451,46.89793,3634.0,3633.9,0.002]
[1754479858459,49.79893,3634.0,3633.9,0.002]
[1754479858980,0.55,3633.6,3633.1,0.002]
[1754479859125,3.0,3633.7,3633.1,0.002]
[1754479859126,4.91371455,3633.5,3633.1,0.002]
[1754479859330,0.1376,3633.2,3633.1,0.002]
[1754479859540,7.90121455,3633.2,3633.1,0.002]
[1754479859854,8.8022,3633.2,3633.1,0.002]
[1754479860073,10.04253,3633.2,3633.1,0.002]
[1754479860222,57.96038303,3633.2,3633.1,0.002]
[1754479861476,0.55,3632.9,3632.8,0.002]
[1754479861773,40.66661455,3632.9,3632.8,0.002]
[1754479862059,41.7052,3632.9,3632.8,0.002]
[1754479862261,40.38569032,3632.9,3632.8,0.002]
[1754479862452,44.57369032,3632.9,3632.8,0.002]
[1754479864662,41.67269032,3632.9,3632.8,0.002]
[1754479867359,41.78303532,3632.9,3632.8,0.002]
[1754479870848,44.68403532,3632.9,3632.8,0.002]
[1754479871567,0.55,3632.7,3632.4,0.002]
[1754479871767,18.15445303,3632.5,3632.4,0.002]
[1754479871976,48.15445303,3632.5,3632.4,0.002]
[1754479872180,49.06905303,3632.5,3632.4,0.002]
[1754479873781,53.36640603,3632.5,3632.4,0.002]
[1754479874085,23.91640603,3632.5,3632.4,0.002]